bitfinex-derivatives/quotes_ETHF0:USTF0_20241105
["timestamp","ask_amount","ask_price","bid_price","bid_amount"]
[1730845922189,0.4346,2429.4,2429.2,0.41166]
[1730845922694,4.5514,2429.4,2429.2,0.41166]
[1730845923189,4.5514,2429.4,2429.3,0.41166]
[1730845923401,4.96305,2429.4,2429.1,0.41169]
[1730845923583,0.84625,2429.4,2429.0,5.78104779]
[1730845923787,0.84625,2429.4,2429.1,0.41168]
[1730845924092,0.84625,2429.4,2429.0,3.6195]
[1730845924093,0.41167,2429.3,2429.0,3.6195]
[1730845924280,0.4346,2429.4,2429.0,3.6195]
[1730845924480,0.4346,2429.4,2428.5,0.208]
[1730845924481,0.41178,2428.6,2428.5,0.208]
[1730845924689,5.78104779,2429.1,2427.7,5.98904779]
[1730845924690,3.2078,2428.7,2427.7,5.98904779]
[1730845924984,3.2078,2428.7,2427.9,0.41188]
[1730845924985,0.41182,2428.4,2427.9,0.41188]
[1730845925185,40.8,2428.5,2428.1,0.41185]
[1730845925487,40.8,2428.5,2428.2,0.41183]
[1730845925685,40.8,2428.5,2428.3,0.41183]
[1730845925883,40.8,2428.5,2428.0,3.2078]
[1730845926082,40.8,2428.5,2428.2,0.41184]
[1730845926384,40.8,2428.5,2428.3,0.41182]
[1730845926583,40.8,2428.5,2428.2,0.41184]
[1730845926784,40.8,2428.5,2428.3,0.41183]
[1730845926989,3.2078,2428.7,2428.4,0.41181]
[1730845927184,3.2078,2428.7,2428.2,2.57324779]
[1730845927386,3.6195,2429.1,2428.5,0.41178]
[1730845927585,1.81671,2429.0,2428.5,0.41178]
[1730845928186,1.405,2429.0,2428.3,4.2848]
[1730845928583,0.41173,2428.9,2428.3,4.69662]
[1730845929189,1.405,2429.0,2428.3,4.2848]
[1730845929390,1.405,2429.0,2428.3,4.69662]
[1730845929693,0.41172,2428.9,2428.3,4.69662]
[1730845930088,0.41175,2428.8,2428.3,4.69662]
[1730845930795,1.405,2429.0,2428.3,4.2848]
[1730845931093,0.41176,2428.7,2428.3,4.2848]
[1730845931286,0.41176,2428.7,2428.3,4.69662]
[1730845931486,0.41176,2428.7,2428.3,4.2848]
[1730845931687,0.41176,2428.7,2428.3,4.69662]
[1730845932487,1.405,2429.0,2428.3,4.2848]
[1730845933093,0.41177,2428.7,2428.3,4.69663]
[1730845933283,0.4382,2428.6,2428.3,4.69663]
[1730845933685,0.4382,2428.6,2428.3,1.48883]
[1730845933890,0.4118,2428.5,2428.1,0.86036]
[1730845934088,0.41182,2428.4,2428.2,1.077]
[1730845934289,0.9031,2428.5,2428.1,0.4485]
[1730845934487,0.41181,2428.4,2428.1,0.4485]
[1730845934989,1.3149,2428.5,2428.1,0.86036]
[1730845935692,0.4382,2428.6,2428.3,0.41182]
[1730845935893,0.4382,2428.6,2428.3,3.61962]
[1730845936696,0.9124,2428.6,2428.3,3.61962]
[1730845937493,0.9124,2428.6,2428.4,0.41181]
[1730845937688,0.9124,2428.6,2428.3,3.2078]
[1730845937892,1.32418,2428.6,2428.3,3.61962]
[1730845938099,1.32418,2428.6,2428.3,3.2078]
[1730845939300,0.4571,2428.5,2428.3,3.61962]
[1730845939890,0.8689,2428.5,2428.3,3.61962]
[1730845941298,0.8689,2428.5,2428.4,0.41181]
[1730845941299,0.86889,2428.5,2428.4,0.41181]
[1730845941600,0.9124,2428.6,2428.5,0.41179]
[1730845942702,0.9124,2428.6,2428.3,3.2078]
[1730845942703,0.41176,2428.7,2428.6,0.41178]
[1730845943001,0.85546,2428.7,2428.6,0.41178]
[1730845944193,0.41181,2428.4,2428.2,0.41184]
[1730845944394,0.4437,2428.7,2428.3,0.41182]
[1730845944798,0.41181,2428.5,2428.3,0.41182]
[1730845944992,0.41178,2428.6,2428.4,0.4118]
[1730845946617,0.41178,2428.6,2428.1,3.02174779]
[1730845946618,0.4118,2428.5,2428.3,0.41181]
[1730845946800,0.41182,2428.4,2428.1,3.02174779]
[1730845947000,0.4437,2428.7,2428.4,0.4118]
[1730845947001,0.41178,2428.6,2428.4,0.4118]
[1730845947602,0.41179,2428.5,2428.3,0.41181]
[1730845948101,0.41179,2428.6,2428.4,0.4118]
[1730845948301,0.41179,2428.5,2428.4,0.4118]
[1730845948507,0.41179,2428.5,2428.2,0.476]
[1730845948703,0.4437,2428.7,2428.1,2.57324779]
[1730845948908,0.41179,2428.5,2428.2,0.41184]
[1730845949104,0.41179,2428.5,2428.3,0.41182]
[1730845949403,0.41179,2428.5,2428.1,2.57324779]
[1730845949602,0.41179,2428.5,2428.3,0.41181]
[1730845949797,2.14924105,2428.9,2428.8,0.41174]
[1730845950000,2.59784105,2429.3,2429.2,0.41167]
[1730845950201,0.4486,2429.3,2429.2,0.41167]
[1730845957198,0.41165,2429.4,2429.3,0.41165]
[1730845957804,3.06114105,2429.5,2429.3,0.41165]
[1730845958001,3.47277105,2429.5,2429.4,0.41164]
[1730845958213,3.47277105,2429.5,2429.0,1.076]
[1730845958415,3.47277105,2429.5,2429.3,0.41165]
[1730845960105,3.47277105,2429.5,2429.4,0.41164]
[1730845960310,1.32353,2429.5,2429.4,0.41164]
[1730845960511,1.32353,2429.5,2429.0,1.076]
[1730845960706,2.15268727,2429.4,2429.3,0.41166]
[1730845964710,3.06458727,2429.5,2429.1,5.78104779]
[1730845964917,3.06458727,2429.5,2429.4,0.41164]
[1730845967716,3.47620727,2429.5,2429.4,0.41164]
[1730845967916,3.06458727,2429.5,2429.4,0.41164]
[1730845969319,0.9119,2429.5,2429.4,0.41164]
[1730845969518,3.06458727,2429.5,2429.4,0.41164]
[1730845970421,0.9119,2429.5,2429.4,0.41164]
[1730845970919,3.06458727,2429.5,2429.4,0.41164]
[1730845971109,2.87522926,2430.0,2429.4,5.78104779]
[1730845971316,1.5801,2430.0,2429.9,1.18581426]
[1730845971615,1.5801,2430.0,2429.9,1.59737426]
[1730845971821,5.6953,2430.0,2429.9,1.59737426]
[1730845972222,1.5801,2430.0,2429.9,1.59737426]
[1730845973022,0.2,2430.0,2429.9,1.59737426]
[1730845973526,0.2,2430.0,2429.9,0.41156]
[1730845975518,1.0884,2430.0,2429.9,0.41156]
[1730845976230,1.0884,2430.0,2429.9,4.52676]
[1730845976231,0.2,2430.0,2429.9,4.52676]
[1730845980424,0.2,2430.0,2429.9,4.95646]
[1730845983126,0.2,2430.0,2429.9,0.84126]
[1730845983427,0.2,2430.0,2429.9,4.95646]
[1730845988626,0.4531,2430.5,2430.4,0.41147]
[1730845989521,0.86455,2430.5,2430.4,0.41147]
[1730845990632,0.86455,2430.5,2430.3,3.2078]
[1730845990934,0.86456,2430.5,2430.4,0.41147]
[1730845991625,0.4531,2430.5,2430.4,0.41147]
[1730845995325,0.4531,2430.5,2430.4,1.59706972]
[1730846002826,0.4531,2430.5,2430.2,3.2078]
[1730846003027,4.1144,2430.4,2430.2,0.4115]
[1730846003238,4.52588,2430.4,2430.1,1.59710972]
[1730846003437,0.41148,2430.4,2430.1,1.59710972]
[1730846003641,0.41149,2430.3,2430.1,1.18559972]
[1730846003839,0.8843,2430.2,2430.1,1.18559972]
[1730846004337,0.8843,2430.2,2430.1,1.59711972]
[1730846004733,4.9995,2430.2,2430.1,1.18559972]
[1730846005239,4.9995,2430.2,2430.1,1.59711972]
[1730846005636,4.9995,2430.2,2430.1,1.18559972]
[1730846005833,4.9995,2430.2,2430.1,1.59711972]
[1730846006237,4.9995,2430.2,2430.1,1.18559972]
[1730846006438,5.411,2430.2,2430.1,1.18559972]
[1730846006835,5.411,2430.2,2430.0,0.41153]
[1730846007034,0.4423,2430.1,2429.9,1.18559972]
[1730846007235,0.4423,2430.1,2430.0,0.41154]
[1730846007636,4.5575,2430.1,2430.0,0.41154]
[1730846010644,4.5575,2430.1,2429.9,1.18559972]
[1730846010841,4.52674,2430.0,2429.8,0.41156]
[1730846011047,2.55834436,2430.0,2429.8,0.41156]
[1730846011243,2.55834436,2430.0,2429.7,1.59717972]
[1730846011448,2.14680436,2429.9,2429.7,1.18559972]
[1730846011641,0.9095,2429.8,2429.7,1.59717972]
[1730846011942,5.0247,2429.8,2429.7,1.59717972]
[1730846012547,5.0247,2429.8,2429.7,1.18559972]
[1730846012745,7.58308436,2429.8,2429.5,1.18559972]
[1730846012937,0.4561,2429.7,2429.5,0.41161]
[1730846013139,2.60290436,2429.7,2429.5,0.41161]
[1730846014042,2.60290436,2429.7,2429.6,1.59720972]
[1730846014248,0.4561,2429.7,2429.6,1.59720972]
[1730846015739,3.05630436,2429.8,2429.6,1.18559972]
[1730846016144,2.14680436,2429.7,2429.6,1.59718972]
[1730846016536,3.05630436,2429.8,2429.7,0.41159]
[1730846016948,7.17230436,2429.8,2429.7,0.41159]
[1730846017149,6.26280436,2429.8,2429.7,0.41159]
[1730846021048,4.116,2429.8,2429.7,0.41159]
[1730846021250,6.26280436,2429.8,2429.7,0.41159]
[1730846021450,4.116,2429.8,2429.7,0.41159]
[1730846022344,4.116,2429.8,2429.4,3.646]
[1730846022549,2.14680436,2429.5,2429.2,0.9075]
[1730846022745,0.85115,2429.4,2429.1,0.41169]
[1730846022948,0.84496,2429.3,2429.0,1.59729972]
[1730846023249,1.29376,2429.3,2429.0,1.59730972]
[1730846023657,1.29377,2429.3,2429.0,1.59730972]
[1730846023860,0.8821,2429.3,2429.0,1.18559972]
[1730846024355,0.41168,2429.2,2428.9,0.8992]
[1730846024557,0.41168,2429.2,2428.9,1.31092]
[1730846024753,0.4117,2429.1,2428.9,0.8992]
[1730846024947,3.2078,2429.6,2428.9,0.4546]
[1730846025150,4.4819767,2430.0,2428.9,0.4546]
[1730846025151,1.39415498,2430.2,2430.1,0.41152]
[1730846025350,0.01978,2431.3,2430.9,0.41139]
[1730846025657,0.01978,2431.3,2431.2,1.18559972]
[1730846025658,11.66560192,2431.3,2431.2,1.18559972]
[1730846025959,11.26560192,2431.3,2431.2,1.18559972]
[1730846026365,11.26560192,2431.3,2431.2,2.24745167]
[1730846026547,11.26560192,2431.3,2431.2,3.00189056]
[1730846026855,11.26560192,2431.3,2431.2,1.94003861]
[1730846027053,0.122,2431.8,2431.2,3.45892968]
[1730846027261,11.38760192,2431.8,2431.5,1.06153362]
[1730846027452,0.122,2431.8,2431.6,0.29014761]
[1730846027658,0.122,2431.8,2431.4,1.06153362]
[1730846027659,11.26560192,2431.7,2431.4,1.06153362]
[1730846027858,11.26560192,2431.6,2431.5,0.77580525]
[1730846028359,11.26560192,2431.6,2431.5,1.18708525]
[1730846028752,11.26560192,2431.6,2431.5,0.77580525]
[1730846028954,11.26560192,2431.6,2431.5,0.77509321]
[1730846029363,11.26560192,2431.6,2431.5,0.298091]
[1730846029553,11.26560192,2431.6,2431.5,0.78578967]
[1730846030366,11.26560192,2431.6,2431.5,0.298091]
[1730846031162,11.26560192,2431.6,2431.5,0.709371]
[1730846031362,11.26560192,2431.6,2431.5,0.298091]
[1730846032462,11.26560192,2431.6,2431.5,0.709371]
[1730846032653,11.26560192,2431.6,2431.5,0.71263567]
[1730846033053,11.26560192,2431.6,2431.5,0.71260931]
[1730846034066,11.26560192,2431.6,2431.5,0.30132931]
[1730846034467,11.26560192,2431.6,2431.5,0.71260931]
[1730846036372,11.26560192,2431.6,2431.5,0.71002272]
[1730846037367,11.26560192,2431.6,2431.5,0.41128]
[1730846038471,14.47340192,2431.6,2431.5,0.41128]
[1730846041863,14.47340192,2431.6,2431.3,0.41131]
[1730846042066,11.26560192,2431.4,2431.0,0.4482]
[1730846042266,11.26560192,2431.4,2431.3,0.41132]
[1730846042670,11.26560192,2431.4,2431.0,0.4482]
[1730846042671,11.26560192,2431.4,2431.2,0.41133]
[1730846043171,3.2078,2431.3,2431.2,0.41133]
[1730846043473,14.47340192,2431.3,2431.1,0.41134]
[1730846043674,3.2078,2431.3,2431.1,0.41134]
[1730846043879,11.26560192,2431.2,2431.1,0.41134]
[1730846044182,11.26560192,2431.2,2430.6,3.01543818]
[1730846044375,3.2078,2431.3,2431.0,0.41136]
[1730846044782,11.26560192,2431.1,2430.9,0.41138]
[1730846044969,3.2078,2431.0,2430.9,0.41138]
[1730846045169,14.47340192,2431.0,2430.9,0.41138]
[1730846046281,14.47340192,2431.0,2430.4,3.2078]
[1730846046478,3.2078,2431.0,2430.9,0.41139]
[1730846046780,3.2078,2431.0,2430.8,0.41139]
[1730846046982,11.26560192,2430.7,2430.6,0.41144]
[1730846047176,11.26560192,2430.7,2430.4,0.4369]
[1730846047177,11.26560192,2430.6,2430.5,0.41145]
[1730846047477,11.26560192,2430.6,2430.5,0.71011346]
[1730846048082,11.26560192,2430.6,2430.5,0.41145]
[1730846048585,10.648212,2430.6,2430.5,0.41145]
[1730846050482,10.648212,2430.6,2430.4,0.41146]
[1730846050781,11.077912,2430.5,2430.4,0.41146]
[1730846055180,11.077912,2430.5,2429.9,3.29408918]
[1730846055181,11.489362,2430.5,2430.3,0.41147]
[1730846055380,3.2078,2430.4,2430.3,0.41147]
[1730846055581,13.856012,2430.4,2430.3,0.41147]
[1730846056979,13.856012,2430.4,2429.9,2.09873599]
[1730846057182,10.648212,2430.1,2430.0,0.71063031]
[1730846058184,10.648212,2430.1,2430.0,0.41154]
[1730846060787,11.059732,2430.1,2430.0,0.41154]
[1730846060982,11.059732,2430.1,2429.6,1.06153362]
[1730846061184,10.648212,2429.8,2429.7,0.41159]
[1730846061887,10.648212,2429.8,2429.7,0.71092302]
[1730846067084,10.648212,2429.8,2429.7,0.41159]
[1730846067687,10.648212,2429.8,2429.4,0.4405]
[1730846067887,0.4469,2429.7,2429.6,0.41159]
[1730846068089,3.6547,2429.7,2429.6,0.70913904]
[1730846068291,14.302912,2429.7,2429.4,0.4405]
[1730846068492,10.648212,2429.5,2429.4,0.85214]
[1730846070190,10.648212,2429.5,2429.4,1.1470364]
[1730846070398,10.648212,2429.5,2429.4,1.61911671]
[1730846070995,10.648212,2429.5,2429.4,1.17861671]
[1730846071191,10.648212,2429.5,2429.4,0.7065364]
[1730846071387,10.648212,2429.5,2429.4,0.70665553]
[1730846073191,10.648212,2429.5,2429.4,0.29501553]
[1730846073387,10.648212,2429.5,2429.4,0.70665553]
[1730846074595,10.648212,2429.5,2429.4,0.41164]
[1730846075690,13.856012,2429.5,2429.4,0.41164]
[1730846078794,3.2078,2429.5,2429.4,0.41164]
[1730846079095,3.2078,2429.5,2429.4,0.70433932]
[1730846079302,3.2078,2429.5,2429.4,0.41164]
[1730846079489,3.2078,2429.5,2429.4,0.7043934]
[1730846081898,3.2078,2429.5,2429.4,0.70452566]
[1730846082098,3.2078,2429.5,2429.4,0.70450998]
[1730846085493,3.2078,2429.5,2429.4,0.70488614]
[1730846086104,3.2078,2429.6,2429.5,0.41162]
[1730846086402,13.856012,2429.6,2429.5,0.70486614]
[1730846087197,10.648212,2429.6,2429.5,0.70486614]
[1730846087409,13.856012,2429.6,2429.5,0.70486614]
[1730846089109,13.856012,2429.6,2429.5,0.70516558]
[1730846089497,13.856012,2429.6,2429.5,1.17514716]
[1730846091909,14.267622,2429.6,2429.5,0.70516558]
[1730846092303,13.856012,2429.6,2429.5,0.70516558]
[1730846092702,13.856012,2429.6,2429.5,0.41162]
[1730846092904,13.856012,2429.6,2429.5,0.70347689]
[1730846093103,14.267622,2429.6,2429.5,0.70347689]
[1730846094802,13.856012,2429.6,2429.5,0.70347689]
[1730846095311,13.856012,2429.6,2429.5,1.17093943]
[1730846096010,14.300012,2429.6,2429.5,1.17093943]
[1730846096504,14.300012,2429.6,2429.5,1.17140932]
[1730846096910,14.300012,2429.6,2429.5,0.70382531]
[1730846098111,14.300012,2429.6,2429.5,1.17156255]
[1730846099908,11.092212,2429.6,2429.5,1.17156255]
[1730846100109,11.092212,2429.6,2429.5,0.41162]
[1730846100309,11.092212,2429.6,2429.5,1.17214443]
[1730846100507,14.300012,2429.6,2429.5,1.17214443]
[1730846102712,14.300012,2429.6,2429.5,1.17311733]
[1730846103809,11.092212,2429.6,2429.5,1.17311733]
[1730846104515,14.300012,2429.6,2429.5,1.17311733]
[1730846106317,14.300012,2429.6,2429.5,0.41162]
[1730846106714,14.300012,2429.6,2429.5,1.75984343]
[1730846107321,14.300012,2429.6,2429.5,2.82137705]
[1730846108324,14.300012,2429.6,2429.5,1.75984343]
[1730846108514,14.300012,2429.6,2429.5,2.82137705]
[1730846108915,14.300012,2429.6,2429.5,1.75984343]
[1730846109119,14.300012,2429.6,2429.5,2.82137705]
[1730846110017,14.300012,2429.6,2429.5,2.81127172]
[1730846110221,14.300012,2429.6,2429.5,1.7497381]
[1730846110412,14.300012,2429.6,2429.5,1.16789349]
[1730846111124,14.300012,2429.6,2429.5,2.81126833]
[1730846111317,14.300012,2429.6,2429.2,0.39000711]
[1730846111624,0.41167,2429.2,2428.9,1.59278391]
[1730846111818,13.856012,2429.3,2429.0,1.53156029]
[1730846111819,11.114412,2429.1,2429.0,1.53156029]
[1730846112015,11.114412,2429.1,2429.0,3.06905805]
[1730846112216,11.114412,2429.1,2429.0,2.48684583]
[1730846112616,11.114412,2429.1,2429.0,0.94934807]
[1730846113126,11.114412,2429.1,2429.0,0.4117]
[1730846113318,11.114412,2429.1,2429.0,1.94918545]
[1730846113519,11.114412,2429.1,2429.0,0.4117]
[1730846114117,12.30039469,2429.1,2429.0,0.4117]
[1730846114518,12.77419469,2429.1,2429.0,0.4117]
[1730846115522,11.114412,2429.1,2429.0,0.4117]
[1730846116028,11.526102,2429.1,2429.0,0.41171]
[1730846116235,11.526102,2429.1,2428.8,1.59278391]
[1730846116521,11.526102,2429.1,2428.9,0.41171]
[1730846116522,13.856012,2429.0,2428.9,0.41171]
[1730846116729,10.648212,2428.9,2428.8,0.41173]
[1730846116919,10.648212,2428.9,2428.8,2.48657913]
[1730846117115,10.648212,2428.9,2428.8,2.48659756]
[1730846117321,10.648212,2428.9,2428.8,0.41173]
[1730846117725,13.856012,2428.9,2428.8,0.41173]
[1730846118026,13.856012,2428.9,2428.6,1.59278391]
[1730846118226,3.2078,2428.9,2428.7,0.41175]
[1730846118422,0.41174,2428.8,2428.7,0.41175]
[1730846118622,12.24593469,2428.8,2428.7,0.41176]
[1730846119127,0.41182,2428.4,2428.2,1.59278391]
[1730846119338,15.49389469,2428.3,2428.1,0.41185]
[1730846119622,11.060062,2428.2,2428.0,0.41187]
[1730846119827,10.648212,2428.1,2428.0,0.41187]
[1730846121123,12.24606469,2428.1,2427.7,0.4678]
[1730846121326,10.648212,2427.8,2427.6,0.41193]
[1730846121525,14.317112,2427.7,2427.6,0.41193]
[1730846121827,14.779412,2427.7,2427.6,0.41193]
[1730846123229,15.96539469,2427.7,2427.2,0.4344]
[1730846123431,10.648212,2427.5,2427.3,0.28809922]
[1730846123629,10.648212,2427.5,2427.4,0.70007922]
[1730846123822,4.1312,2427.7,2427.4,0.28809922]
[1730846124020,10.648212,2427.5,2427.4,0.41197]
[1730846124222,10.648212,2427.5,2427.2,0.4344]
[1730846124525,3.2078,2427.4,2427.3,0.41198]
[1730846124923,13.856012,2427.4,2427.2,0.4344]
[1730846125127,10.648212,2427.3,2427.2,0.41201]
[1730846125429,10.648212,2427.3,2426.9,0.9143]
[1730846125631,10.648212,2427.1,2427.0,0.41205]
[1730846126427,13.856012,2427.1,2427.0,0.41205]
[1730846126628,14.307412,2427.1,2426.9,0.41205]
[1730846126823,10.648212,2426.9,2426.8,0.84128]
[1730846127231,10.648212,2426.9,2426.8,0.41208]
[1730846128631,10.648212,2426.9,2426.5,0.451]
[1730846128632,11.060272,2426.9,2426.7,0.41209]
[1730846128830,3.2078,2426.8,2426.7,0.41209]
[1730846129134,13.856012,2426.8,2426.7,0.41209]
[1730846129622,13.856012,2426.8,2426.0,3.4148]
[1730846129824,10.648212,2426.4,2426.3,0.41215]
[1730846130134,10.02978965,2426.4,2426.3,0.41215]
[1730846130336,10.02978965,2426.4,2426.0,0.62042553]
[1730846130637,3.2078,2426.3,2426.2,0.41217]
[1730846130824,10.02978965,2426.1,2426.0,0.4575]
[1730846131022,10.02978965,2426.1,2426.0,0.41222]
[1730846131730,8.99895212,2426.1,2426.0,0.41222]
[1730846133123,8.99895212,2426.1,2425.7,4.5333]
[1730846133323,8.99895212,2426.0,2425.7,4.5333]
[1730846133528,8.99895212,2426.0,2425.9,0.41223]
[1730846133727,7.55587203,2426.0,2425.9,0.41223]
[1730846136132,3.2078,2426.4,2425.9,0.41223]
[1730846136326,3.2078,2426.4,2426.3,0.41217]
[1730846136734,9.85442203,2426.4,2426.3,0.41217]
[1730846139034,2.57149993,2426.2,2425.6,1.0307]
[1730846139243,6.64662203,2425.7,2425.6,0.41228]
[1730846140540,3.6828,2426.0,2425.9,0.41223]
[1730846141044,9.85442203,2426.0,2425.9,0.41223]
[1730846143634,6.64662203,2426.0,2425.9,0.41223]
[1730846145336,0.4379,2426.4,2425.8,3.2078]
[1730846145540,6.64662203,2426.3,2426.2,0.41218]
[1730846146349,3.2078,2426.5,2426.1,3.2078]
[1730846146543,3.2078,2426.5,2426.4,0.41215]
[1730846147050,2.35558,2426.5,2426.4,0.41215]
[1730846147345,0.4457,2427.0,2426.6,1.03029]
[1730846147640,0.4364,2427.1,2426.7,0.8696]
[1730846147641,5.81058203,2426.8,2426.7,0.8696]
[1730846148148,0.4364,2427.1,2426.7,0.8696]
[1730846148444,0.4375,2427.4,2426.7,3.6653]
[1730846148638,0.4375,2427.4,2427.3,0.412]
[1730846148837,5.38709203,2427.4,2427.3,0.412]
[1730846149348,4.94959203,2427.4,2427.3,0.412]
[1730846149553,0.4444,2427.6,2427.5,0.41196]
[1730846150039,5.39399203,2427.6,2427.5,0.41196]
[1730846150239,4.94959203,2427.6,2427.5,0.41196]
[1730846156448,0.4444,2428.0,2427.4,0.4742]
[1730846156761,4.94959203,2427.7,2427.6,3.61975]
[1730846156947,0.4444,2428.0,2427.6,3.61975]
[1730846156948,4.94959203,2427.9,2427.6,3.61975]
[1730846157145,4.94959203,2427.9,2427.8,0.41191]
[1730846159251,0.4504,2428.1,2428.0,0.41188]
[1730846159649,5.39999203,2428.1,2428.0,0.41188]
[1730846183190,0.4504,2428.1,2428.0,0.41188]
[1730846185384,1.637027,2428.1,2428.0,0.41188]
[1730846187483,2.048897,2428.1,2427.9,0.41188]
[1730846187874,3.2078,2428.0,2427.9,0.41188]
[1730846188289,8.15739203,2428.0,2427.9,0.41188]
[1730846188586,8.56927203,2428.0,2427.9,0.41188]
[1730846189284,8.15739203,2428.0,2427.5,1.1138]
[1730846189582,1.3373,2427.9,2427.8,0.4119]
[1730846189981,6.69878203,2427.9,2427.8,0.4119]
[1730846190180,6.69878203,2427.9,2427.8,0.69726471]
[1730846190683,6.69878203,2427.9,2427.8,0.4119]
[1730846191086,6.28689203,2427.9,2427.8,0.28355489]
[1730846191287,7.88540903,2427.9,2427.8,0.28355489]
[1730846191886,7.88540903,2427.9,2427.7,0.41192]
[1730846191887,7.47351903,2427.9,2427.7,0.41192]
[1730846192083,7.47351903,2427.9,2427.4,1.59278391]
[1730846192084,4.94959203,2427.8,2427.4,1.59278391]
[1730846192285,4.94959203,2427.5,2427.4,2.00476391]
[1730846192486,4.33142394,2427.5,2427.4,2.67211337]
[1730846192683,4.33142394,2427.5,2427.4,4.26489728]
[1730846193086,4.97942394,2427.5,2427.4,4.26489728]
[1730846193395,4.97942394,2427.5,2427.4,4.26618667]
[1730846194191,4.97942394,2427.5,2427.4,4.8048325]
[1730846195989,6.16605094,2427.5,2427.4,4.80200871]
[1730846196187,6.57801094,2427.5,2427.4,4.54634049]
[1730846196387,6.57801094,2427.5,2427.4,3.40618472]
[1730846196586,6.57801094,2427.5,2427.4,2.99420472]
[1730846197092,6.57801094,2427.5,2427.4,1.0183444]
[1730846197301,7.76463794,2427.5,2427.4,1.0183444]
[1730846197688,1.30826563,2427.1,2426.9,1.60771385]
[1730846197887,1.30826563,2426.9,2426.8,0.41208]
[1730846198098,1.30826563,2426.9,2426.8,1.93365502]
[1730846198589,1.30826563,2426.9,2426.8,0.41208]
[1730846198995,4.51606563,2426.9,2426.8,0.41208]
[1730846199898,4.92812563,2426.9,2426.8,0.41208]
[1730846200696,4.92812563,2426.9,2426.4,1.3428]
[1730846200697,5.18106563,2426.9,2426.4,1.3428]
[1730846200895,0.41209,2426.8,2426.6,0.4121]
[1730846201089,3.8728,2426.9,2426.4,1.3428]
[1730846201090,1.30826563,2426.5,2426.4,1.3428]
[1730846201294,1.30826563,2426.5,2426.4,0.41215]
[1730846201802,3.01829563,2426.5,2426.4,0.41215]
[1730846202188,3.01829563,2426.5,2426.3,0.41216]
[1730846202389,1.71003,2426.5,2426.3,0.41216]
[1730846202589,1.71003,2426.5,2426.1,0.41219]
[1730846202590,0.41217,2426.3,2426.1,0.41219]
[1730846202900,4.51606563,2426.2,2426.1,0.41219]
[1730846203097,4.92824563,2426.2,2426.0,0.41221]
[1730846203299,1.96386563,2426.1,2426.0,0.41221]
[1730846203593,2.37606563,2426.1,2425.9,0.41222]
[1730846203790,2.37606563,2426.1,2425.4,4.23858]
[1730846203791,1.30826563,2425.9,2425.4,3.2078]
[1730846204004,1.30826563,2425.5,2425.4,1.07892]
[1730846206899,1.30826563,2425.5,2425.4,4.28672]
[1730846207401,0.27730855,2425.5,2425.4,4.28672]
[1730846209499,0.7069,2426.0,2425.4,7.9976]
[1730846209799,0.27730855,2425.9,2425.8,0.41225]
[1730846210211,3.2078,2426.2,2426.1,0.4122]
[1730846210697,3.2078,2426.2,2426.1,4.5338]
[1730846211201,3.48510855,2426.2,2426.1,0.4122]
[1730846213801,0.27730855,2426.2,2426.1,0.4122]
[1730846223102,0.27730855,2426.2,2425.9,3.8671]
[1730846223308,0.27730855,2426.0,2425.9,4.27933]
[1730846225309,0.27730855,2426.0,2425.9,4.4418737]
[1730846229213,0.27730855,2426.0,2425.9,1.2340737]
[1730846231110,0.27730855,2426.0,2425.9,1.51242873]
[1730846231315,0.27730855,2426.0,2425.9,2.5786073]
[1730846231715,0.27730855,2426.0,2425.9,2.30025227]
[1730846231916,0.27730855,2426.0,2425.9,2.57863235]
[1730846233405,0.27730855,2426.0,2425.9,3.80392635]
[1730846233610,0.27730855,2426.0,2425.9,4.08252473]
[1730846233811,0.27730855,2426.0,2425.9,3.01634616]
[1730846234215,0.27730855,2426.0,2425.9,2.57984892]
[1730846234415,0.27730855,2426.0,2425.9,3.01709371]
[1730846234814,0.27730855,2426.0,2425.9,2.35778898]
[1730846235022,0.6921,2426.5,2425.9,6.06795898]
[1730846235320,0.6921,2426.5,2426.1,0.4122]
[1730846235321,0.27730855,2426.2,2426.1,0.4122]
[1730846235512,0.27730855,2426.2,2426.1,1.75842422]
[1730846236611,0.27730855,2426.2,2426.1,1.75880184]
[1730846237822,0.27730855,2426.2,2426.1,3.26554241]
[1730846238420,0.27730855,2426.2,2426.1,2.19791657]
[1730846238719,0.27730855,2426.2,2426.1,1.76102845]
[1730846239324,0.27730855,2426.2,2426.1,2.64594196]
[1730846239621,0.27730855,2426.2,2426.1,1.13832355]
[1730846239826,0.27730855,2426.2,2426.1,1.92025914]
[1730846240225,0.27730855,2426.2,2426.1,2.64669198]
[1730846240826,0.27730855,2426.2,2426.1,3.18163995]
[1730846242225,0.27730855,2426.2,2426.1,5.3240346]
[1730846243633,0.27730855,2426.2,2426.1,5.32686819]
[1730846244528,0.27730855,2426.2,2426.1,5.33075668]
[1730846245427,0.27730855,2426.2,2426.1,3.18836203]
[1730846247133,0.27730855,2426.2,2426.1,3.18915841]
[1730846249627,0.27730855,2426.2,2426.1,2.74073187]
[1730846250730,0.27730855,2426.2,2426.1,1.92414763]
[1730846250931,0.27730855,2426.2,2426.1,2.6533122]
[1730846251136,0.27730855,2426.2,2426.1,1.92414763]
[1730846252032,0.27730855,2426.2,2426.1,2.46110446]
[1730846252341,0.27730855,2426.2,2426.1,1.92414763]
[1730846252634,0.27730855,2426.2,2426.1,3.19112668]
[1730846253138,0.27730855,2426.2,2426.1,3.63874846]
[1730846253442,0.27730855,2426.2,2426.1,3.19112668]
[1730846254237,0.27730855,2426.2,2426.1,3.19288511]
[1730846254629,0.98850855,2426.2,2426.1,3.19288511]
[1730846255142,0.98850855,2426.2,2426.1,4.05342427]
[1730846255329,0.98850855,2426.2,2426.1,6.19581892]
[1730846256029,0.98850855,2426.2,2426.1,5.33527976]
[1730846256333,0.98850855,2426.2,2426.1,6.19580966]
[1730846258538,0.98850855,2426.2,2426.1,4.05341501]
[1730846259025,0.98850855,2426.2,2426.1,4.05391613]
[1730846259231,0.98850855,2426.2,2426.1,3.64171613]
[1730846259431,0.98850855,2426.2,2426.1,2.78118623]